bitfinex-derivatives/quotes_ETHF0:USTF0_20250912
["timestamp","ask_amount","ask_price","bid_price","bid_amount"]
[1757638160654,0.1946,4525.5,4525.3,3.2078]
[1757638160952,0.7043,4525.5,4525.3,3.4898]
[1757638161646,0.5097,4525.4,4525.3,3.4898]
[1757638161850,0.5097,4525.4,4525.3,3.2078]
[1757638162952,0.5097,4525.4,4525.3,3.4898]
[1757638163745,0.1946,4525.5,4525.3,3.4898]
[1757638164449,0.1946,4526.2,4525.4,7.41806534]
[1757638164655,0.5097,4526.8,4526.1,3.2078]
[1757638164856,0.5097,4527.4,4526.6,3.2078]
[1757638165051,0.5097,4527.4,4526.7,0.282]
[1757638165248,0.7043,4526.9,4526.7,0.282]
[1757638165550,0.1946,4526.9,4526.7,4.282]
[1757638166349,0.5097,4526.8,4526.7,0.282]
[1757638166752,0.1946,4526.9,4526.7,0.282]
[1757638166958,0.5097,4526.8,4526.7,0.282]
[1757638167148,0.1946,4526.9,4526.7,0.282]
[1757638167652,0.1946,4526.9,4526.6,3.2078]
[1757638168051,0.562,4526.8,4526.6,3.2078]
[1757638168251,4.1946,4526.9,4526.6,3.2078]
[1757638168457,0.562,4526.8,4526.6,3.2078]
[1757638168954,0.4766,4527.6,4526.7,0.282]
[1757638168955,0.562,4527.4,4526.7,0.282]
[1757638169254,0.1946,4527.6,4527.2,3.2078]
[1757638169752,0.562,4527.5,4527.3,0.282]
[1757638169958,0.562,4527.5,4527.4,0.282]
[1757638170550,0.562,4527.5,4527.2,3.2078]
[1757638170551,0.562,4527.5,4527.3,0.282]
[1757638171649,0.562,4527.5,4527.0,0.282]
[1757638172452,0.2202,4527.0,4526.7,3.2078]
[1757638172649,0.562,4526.3,4526.2,3.2078]
[1757638173058,0.562,4526.3,4526.2,3.4898]
[1757638173461,0.562,4526.3,4526.2,3.2078]
[1757638174658,0.562,4526.3,4526.2,3.4888]
[1757638175160,0.2202,4525.8,4525.5,3.2078]
[1757638175366,0.562,4525.7,4525.5,3.2078]
[1757638175753,0.562,4525.1,4525.0,3.4888]
[1757638176454,0.562,4525.1,4525.0,3.2078]
[1757638176654,0.7822,4524.6,4524.5,3.2078]
[1757638176960,0.7822,4524.6,4524.5,3.4888]
[1757638177858,0.2202,4524.6,4524.5,7.4888]
[1757638178463,0.2202,4525.2,4524.5,7.4888]
[1757638178667,0.2202,4525.2,4525.1,3.2078]
[1757638178668,0.7822,4525.2,4525.1,3.2078]
[1757638178867,0.7822,4525.2,4525.1,3.4888]
[1757638179066,0.7822,4525.2,4525.1,3.2078]
[1757638179272,0.7822,4525.2,4525.1,3.4888]
[1757638179767,0.7822,4525.2,4525.1,3.2078]
[1757638180070,0.2202,4525.2,4524.8,0.281]
[1757638180263,0.2202,4525.2,4524.7,0.281]
[1757638180465,0.562,4525.1,4524.8,3.41806534]
[1757638180666,0.562,4525.1,4525.0,3.2078]
[1757638180870,0.562,4525.1,4524.5,3.2078]
[1757638181073,0.2202,4524.5,4524.0,3.2078]
[1757638181271,0.562,4524.4,4524.0,3.2078]
[1757638181665,0.2202,4524.5,4524.0,3.2078]
[1757638181960,0.2202,4524.5,4524.0,3.4888]
[1757638182168,0.562,4524.4,4524.0,3.4888]
[1757638182361,0.562,4524.4,4524.0,3.2078]
[1757638182562,0.2202,4524.5,4524.0,3.2078]
[1757638182762,0.562,4524.4,4524.0,3.2078]
[1757638183068,0.2202,4524.5,4524.0,3.2078]
[1757638183471,0.562,4524.4,4524.1,0.281]
[1757638183769,3.2078,4525.0,4524.1,0.281]
[1757638183770,0.562,4525.0,4524.1,0.281]
[1757638183963,0.2202,4525.2,4524.9,3.2078]
[1757638184163,0.7822,4525.2,4525.0,0.281]
[1757638184364,0.562,4525.1,4525.0,0.281]
[1757638184559,0.2202,4525.2,4524.9,3.2078]
[1757638184769,0.562,4525.1,4524.9,3.4888]
[1757638184964,0.2202,4525.2,4524.9,3.4888]
[1757638185563,3.428,4526.5,4525.1,3.41806534]
[1757638185766,0.2202,4526.5,4526.4,3.2078]
[1757638185963,0.2202,4526.5,4526.4,3.4888]
[1757638186969,0.7822,4526.5,4526.4,3.4888]
[1757638187172,0.7822,4526.5,4525.9,3.2078]
[1757638187173,0.562,4526.4,4525.9,3.2078]
[1757638187572,0.562,4526.4,4526.0,0.281]
[1757638188268,0.2202,4526.5,4526.0,0.281]
[1757638188477,0.7822,4526.5,4526.4,3.2078]
[1757638188667,0.7822,4526.5,4526.4,3.4888]
[1757638189676,0.2202,4526.5,4526.4,3.4888]
[1757638190179,0.22777552,4528.8,4527.5,0.39742]
[1757638190370,0.22777552,4528.8,4526.5,0.99378]
[1757638190371,0.22777552,4528.8,4528.6,3.2078]
[1757638190680,0.562,4529.2,4528.7,26.281]
[1757638190976,0.562,4529.2,4529.1,3.2078]
[1757638191284,0.7822,4530.0,4529.2,0.39727]
[1757638191472,0.7822,4530.0,4529.9,6.62586534]
[1757638191782,0.7822,4530.0,4529.9,3.2078]
[1757638191974,0.7822,4530.0,4529.9,3.4888]
[1757638192171,0.2202,4530.0,4529.9,3.2078]
[1757638192470,0.7822,4530.0,4529.9,3.4888]
[1757638192670,0.7822,4530.0,4529.9,3.2078]
[1757638192881,0.7822,4530.0,4529.9,3.4888]
[1757638193078,0.7822,4530.0,4529.9,2.57082108]
[1757638193274,0.7822,4530.0,4529.7,0.281]
[1757638193474,0.562,4529.9,4529.4,3.4888]
[1757638193777,0.2202,4530.0,4529.4,3.2078]
[1757638194079,0.2202,4528.8,4528.7,6.62586534]
[1757638194275,0.7822,4529.4,4528.7,6.90686534]
[1757638194471,0.7822,4528.8,4528.7,6.62586534]
[1757638194676,0.2202,4529.4,4528.7,6.90686534]
[1757638194875,0.562,4529.3,4529.2,3.2078]
[1757638195178,0.562,4529.3,4529.2,3.4888]
[1757638195877,0.562,4529.3,4529.2,3.2078]
[1757638196182,0.562,4529.3,4529.2,3.4888]
[1757638196377,0.562,4529.3,4529.2,3.2078]
[1757638196571,0.562,4529.3,4528.9,0.281]
[1757638196777,0.2202,4529.4,4528.9,0.281]
[1757638197074,0.562,4528.7,4528.5,3.4888]
[1757638197778,0.5122,4528.7,4528.5,3.2078]
[1757638197973,0.5122,4528.7,4528.6,0.281]
[1757638199272,0.2202,4528.8,4528.5,3.2078]
[1757638199485,0.5122,4528.7,4528.6,0.281]
[1757638199875,0.5122,4528.7,4528.5,3.2078]
[1757638200078,0.5122,4528.1,4528.0,3.2078]
[1757638200279,0.5122,4528.1,4528.0,3.4888]
[1757638200681,0.5122,4528.1,4528.0,3.2078]
[1757638200885,0.5122,4528.0,4527.5,3.2078]
[1757638201075,0.5122,4528.1,4527.5,3.2078]
[1757638201389,0.5122,4527.4,4525.3,0.5068]
[1757638201685,0.2197,4527.5,4525.3,0.5068]
[1757638201686,3.2078,4526.0,4525.5,0.2119]
[1757638201880,0.5122,4526.8,4525.6,3.7146]
[1757638202186,3.72,4526.8,4525.6,0.5068]
[1757638202386,3.72,4526.8,4525.6,0.7868]
[1757638202583,3.2078,4526.8,4526.1,3.87607661]
[1757638202782,3.2078,4527.0,4526.4,0.2119]
[1757638202981,3.2078,4526.9,4526.3,0.5068]
[1757638203184,0.5122,4526.8,4526.2,0.28]
[1757638203485,0.7319,4528.5,4525.2,3.2078]
[1757638203684,0.7319,4528.5,4524.0,0.2119]
[1757638203685,0.2197,4528.5,4527.8,3.2078]
[1757638203882,0.2197,4528.5,4527.8,3.4878]
[1757638204080,0.5122,4528.4,4527.8,3.4878]
[1757638204279,0.2197,4528.5,4527.8,3.2078]
[1757638204492,0.5122,4527.5,4527.4,0.28]
[1757638204685,0.5122,4527.5,4527.3,3.4878]
[1757638204992,0.2197,4527.6,4527.3,3.4878]
[1757638205196,0.5122,4527.5,4527.3,3.4878]
[1757638205489,0.5122,4527.5,4527.4,4.0]
[1757638205691,0.2197,4527.6,4527.5,0.39742]
[1757638205889,0.5122,4528.1,4527.9,0.39738]
[1757638206079,0.5122,4528.1,4528.0,3.4878]
[1757638206695,0.5122,4528.1,4528.0,29.4878]
[1757638206993,0.5122,4528.1,4528.0,33.4878]
[1757638207197,0.5122,4528.4,4528.1,0.39736]
[1757638207497,0.5122,4528.4,4528.2,0.28]
[1757638207688,0.2197,4528.5,4528.3,0.39735]
[1757638207890,0.2197,4528.5,4528.4,0.28]
[1757638208086,0.2197,4528.8,4528.7,0.39731]
[1757638208289,0.5122,4529.8,4528.7,7.36387661]
[1757638208491,0.5122,4529.8,4529.3,3.2078]
[1757638208691,0.5122,4529.8,4529.3,3.4878]
[1757638208889,0.2197,4530.0,4529.3,7.4878]
[1757638209191,0.7319,4529.4,4529.3,33.4878]
[1757638209392,0.7319,4529.4,4529.3,29.4878]
[1757638209587,0.7319,4529.4,4529.3,33.4878]
[1757638210086,0.2197,4529.4,4529.3,33.88506]
[1757638210396,0.7319,4530.0,4529.9,0.39721]
[1757638210585,0.2197,4530.0,4529.9,3.4878]
[1757638210990,0.2197,4530.6,4530.4,0.39716]
[1757638211187,0.2197,4530.6,4530.5,29.4878]
[1757638211387,0.2197,4530.6,4530.5,33.4878]
[1757638211589,0.2197,4531.2,4530.5,36.19688184]
[1757638211787,0.7319,4531.2,4531.1,3.2078]
[1757638211991,0.7319,4531.8,4531.1,3.4878]
[1757638212189,0.2197,4532.4,4531.8,0.39704]
[1757638212394,0.7319,4532.4,4532.3,3.2078]
[1757638212693,0.7319,4532.4,4532.3,3.4878]
[1757638212898,0.5122,4533.9,4532.8,0.39695]
[1757638213095,0.5122,4533.9,4533.8,3.2078]
[1757638213292,0.2197,4534.8,4533.8,3.2078]
[1757638213498,0.2197,4534.8,4533.8,3.4878]
[1757638213799,0.2197,4534.8,4534.3,3.2078]
[1757638213995,0.2197,4534.8,4534.4,0.28]
[1757638214187,0.2197,4534.8,4534.3,3.2078]
[1757638214390,0.2197,4534.8,4534.4,0.28]
[1757638214586,0.2197,4534.8,4534.3,3.2078]
[1757638215192,0.5122,4534.7,4534.3,3.2078]
[1757638215501,0.5122,4534.7,4533.1,3.87607661]
[1757638215502,0.5122,4534.1,4533.8,0.28]
[1757638215710,0.5122,4534.1,4533.9,0.28]
[1757638215894,4.0,4534.0,4533.7,3.2078]
[1757638216090,0.5122,4533.5,4532.4,7.08387661]
[1757638216397,0.5122,4532.9,4532.5,0.28]
[1757638216795,0.5122,4532.9,4532.6,0.28]
[1757638217396,0.2197,4532.5,4531.8,3.2078]
[1757638217596,0.5122,4532.2,4530.8,3.2078]
[1757638217797,3.2078,4531.4,4531.0,0.28]
[1757638218002,0.2197,4532.5,4531.0,0.28]
[1757638218003,0.5122,4532.3,4531.0,4.15607661]
[1757638218204,0.5122,4532.3,4531.4,3.2078]
[1757638218404,3.72,4532.9,4531.5,0.28]
[1757638218699,3.72,4532.9,4531.9,3.2078]
[1757638218903,3.72,4532.9,4532.0,0.28]
[1757638219208,3.2078,4533.4,4532.5,3.2078]
[1757638219406,3.2078,4533.4,4532.6,0.28]
[1757638219798,0.5122,4533.3,4532.7,0.28]
[1757638219998,0.2197,4533.6,4532.9,3.2078]
[1757638219999,0.5122,4533.5,4532.9,3.2078]
[1757638220299,3.2078,4533.1,4531.0,3.2078]
[1757638220505,3.2078,4532.3,4531.1,0.28]
[1757638220691,0.5122,4532.2,4531.1,0.28]
[1757638220896,0.2197,4532.5,4531.0,3.2078]
[1757638220897,0.5122,4531.7,4531.0,3.2078]
[1757638221200,0.5122,4531.7,4531.0,3.4878]
[1757638221904,0.5122,4532.3,4531.0,3.88492]
[1757638222099,0.5122,4532.3,4531.3,3.87607661]
[1757638222293,3.72,4533.0,4531.5,3.2078]
[1757638222698,3.2078,4532.5,4531.5,3.2078]
[1757638222898,0.5122,4532.4,4531.5,3.2078]
[1757638223399,3.2078,4532.5,4531.5,3.7146]
[1757638223599,3.9397,4532.5,4531.5,3.2078]
[1757638224296,3.9397,4532.5,4530.6,0.39715]
[1757638224297,0.7319,4531.8,4530.8,3.2078]
[1757638224606,3.7075,4531.8,4530.8,3.2078]
[1757638225009,0.5122,4531.7,4530.8,3.2078]
[1757638225405,0.7922,4531.7,4530.8,3.2078]
[1757638225800,0.5122,4531.6,4530.8,3.2078]
[1757638226004,0.28,4531.7,4530.1,3.4878]
[1757638226005,3.4275,4531.1,4530.1,3.4878]
[1757638226412,0.5122,4531.0,4530.1,3.4878]
[1757638227512,0.2197,4530.4,4529.7,0.28]
[1757638227704,3.7825,4531.4,4530.0,0.5547]
[1757638228005,3.7825,4531.4,4531.3,3.2078]
[1757638228006,0.5747,4531.4,4531.3,3.2078]
[1757638228209,0.5747,4532.1,4531.3,3.4868]
[1757638228414,0.5747,4532.1,4531.3,0.279]
[1757638228603,4.0615,4532.1,4530.9,0.279]
[1757638228804,0.2197,4532.5,4531.8,3.2078]
[1757638229005,0.5747,4532.7,4531.8,3.2078]
[1757638229311,0.5161,4533.2,4532.4,3.2078]
[1757638229806,3.2078,4533.3,4532.5,0.279]
[1757638230403,0.5747,4533.4,4532.5,0.279]
[1757638230599,3.2078,4533.8,4532.9,3.2078]
[1757638230914,0.5747,4534.7,4533.7,3.2078]
[1757638231108,3.7825,4534.9,4533.8,0.279]
[1757638232805,0.5747,4534.1,4533.8,0.279]
[1757638233306,1.75167258,4536.7,4534.8,3.2078]
[1757638233515,0.5747,4536.5,4536.3,3.2078]
[1757638233708,0.5747,4536.6,4536.2,0.279]
[1757638234007,0.8118,4536.0,4535.9,3.2078]
[1757638234201,0.8118,4536.0,4535.9,3.4868]
[1757638234701,0.8118,4536.0,4535.9,3.2078]
[1757638235211,0.5747,4535.9,4535.8,0.279]
[1757638235410,0.5747,4535.9,4535.4,3.2078]
[1757638235614,0.2371,4536.0,4535.8,3.87607661]
[1757638235813,0.8118,4536.0,4535.9,3.4868]
[1757638236203,0.8118,4536.0,4535.9,3.2078]
[1757638236409,0.8118,4536.0,4532.6,0.99244]
[1757638236410,0.5747,4535.9,4535.4,3.2078]
[1757638236808,0.5747,4535.9,4535.0,0.279]
[1757638236809,0.2371,4535.2,4535.0,0.279]
[1757638237109,0.2371,4535.2,4535.1,0.2657591]
[1757638237510,0.8118,4535.2,4535.1,4.2657591]
[1757638237714,0.8118,4535.2,4535.1,0.2657591]
[1757638237916,0.8118,4535.2,4535.0,0.279]
[1757638237917,0.2371,4535.2,4535.0,0.279]
[1757638238110,0.2371,4535.2,4534.9,3.2078]
[1757638238318,0.5747,4535.1,4534.9,3.2078]
[1757638238518,0.2371,4535.2,4534.9,7.60458]
[1757638238814,0.2371,4536.7,4535.1,0.99192]
[1757638239012,0.2371,4536.7,4536.6,7.08387661]
[1757638239207,0.5747,4537.6,4536.6,7.36287661]
[1757638239407,0.2371,4538.1,4537.3,3.2078]
[1757638239614,0.8118,4538.1,4538.0,3.2078]
[1757638239811,0.2371,4538.8,4538.0,7.2078]
[1757638240013,0.2371,4538.8,4538.3,3.87607661]
[1757638240314,0.00406096,4539.0,4538.5,3.2078]
[1757638240508,0.2371,4539.5,4538.5,3.2078]
[1757638240702,0.2371,4539.5,4539.3,3.2078]
[1757638240909,0.5747,4539.4,4539.3,3.2078]
[1757638241113,0.5747,4539.4,4539.3,0.279]
[1757638241312,0.8118,4539.5,4539.3,4.279]
[1757638241617,0.2371,4540.2,4539.3,0.49929]
[1757638241910,0.2371,4540.9,4539.8,3.2078]
[1757638242109,0.2371,4540.9,4540.3,3.2078]
[1757638242303,0.5747,4540.8,4540.4,0.09069878]
[1757638242507,0.2371,4540.9,4540.4,4.09069878]
[1757638242703,0.2371,4540.8,4540.5,2.87995437]
[1757638242907,0.2371,4540.8,4539.4,3.2078]
[1757638242908,0.279,4540.7,4538.9,3.2078]
[1757638243111,3.7825,4539.6,4538.2,0.5864]
[1757638243310,3.2078,4540.2,4538.5,0.5864]
[1757638243506,0.5747,4539.8,4538.9,3.2078]
[1757638243706,0.5747,4539.8,4538.4,0.5864]
[1757638243707,3.2078,4539.5,4538.4,0.8654]
[1757638243908,3.2078,4538.8,4537.6,0.5864]
[1757638244112,0.5747,4538.4,4537.5,3.4868]
[1757638244314,3.2078,4537.7,4536.9,3.4868]
[1757638244510,3.2078,4537.7,4536.0,0.279]
[1757638244705,3.2078,4537.7,4535.9,3.2078]
[1757638244706,3.2078,4537.2,4535.9,3.2078]
[1757638244911,0.5747,4538.6,4537.1,3.2078]
[1757638245108,0.5747,4538.6,4537.2,0.279]
[1757638245314,3.2078,4538.3,4537.2,0.279]
[1757638245720,3.2078,4537.8,4537.0,0.279]
[1757638246113,3.7825,4537.1,4537.0,0.279]
[1757638246415,3.7825,4537.1,4535.5,0.5864]
[1757638246610,3.2078,4536.5,4535.7,3.2078]
[1757638247014,0.5747,4535.8,4535.2,3.2078]
[1757638247414,3.2078,4536.4,4535.3,0.5864]
[1757638247613,0.5747,4536.6,4535.7,3.2078]
[1757638247917,0.5747,4536.3,4535.2,3.2078]
[1757638248113,0.5747,4535.8,4534.5,3.2078]
[1757638248319,3.2078,4535.9,4534.6,3.7942]
[1757638248619,3.2078,4536.0,4535.1,3.2078]
[1757638248818,0.5747,4536.5,4535.2,0.8654]
[1757638249016,0.5747,4536.5,4535.6,3.2078]
[1757638249017,3.2078,4536.4,4535.6,3.2078]
[1757638249212,0.5747,4536.5,4535.6,3.2078]
[1757638249412,3.2078,4535.9,4535.5,0.279]
[1757638249619,3.2078,4536.4,4535.5,0.279]
[1757638249820,3.7825,4536.5,4535.5,0.279]
[1757638250116,3.2078,4537.0,4535.7,3.2078]
[1757638250313,3.2078,4537.0,4535.8,0.5864]
[1757638250621,3.2078,4536.5,4535.5,3.2078]
[1757638250822,3.2078,4536.5,4535.5,0.279]
[1757638251120,3.2078,4536.5,4534.6,0.279]
[1757638251121,0.5747,4535.9,4534.6,0.279]
[1757638251423,0.5747,4535.9,4532.4,0.2221]
[1757638251424,3.7825,4534.8,4534.7,0.279]
[1757638251808,3.7825,4534.8,4534.0,0.279]
[1757638252213,3.7825,4534.3,4532.8,0.75406493]
[1757638252416,0.5747,4533.6,4532.8,0.16766493]
[1757638252721,0.2371,4534.2,4532.8,0.16766493]
[1757638252722,0.5747,4533.1,4532.8,0.16766493]
[1757638253119,3.2078,4533.2,4532.8,0.16766493]
[1757638253315,0.2198,4533.5,4532.8,0.16766493]
[1757638253625,0.2198,4533.5,4532.8,0.44666493]
[1757638255316,0.2198,4533.5,4532.8,0.16766493]
[1757638255517,0.5747,4533.1,4532.9,0.279]
[1757638255717,0.2198,4533.5,4532.9,0.279]
[1757638256026,0.2198,4533.5,4532.2,3.2078]
[1757638256027,0.5747,4532.9,4532.2,3.2078]
[1757638256727,4.0,4532.9,4532.2,3.2078]
[1757638256912,0.5747,4532.7,4532.2,3.2078]
[1757638257119,0.279,4532.8,4532.2,3.2078]
[1757638257317,0.279,4532.8,4530.2,31.761]
[1757638257318,0.5747,4532.2,4531.1,3.4868]
[1757638257516,3.2078,4532.3,4531.1,3.4868]
[1757638257725,0.5905,4532.8,4531.7,3.2078]
[1757638258022,0.5905,4532.8,4531.9,0.596]
[1757638258326,0.5905,4533.1,4531.7,3.2078]
[1757638258518,3.2078,4532.4,4531.8,0.279]
[1757638258714,3.2078,4532.4,4531.2,0.596]
[1757638258715,3.7983,4532.4,4531.2,3.8038]
[1757638258914,3.7983,4532.4,4531.2,4.0828]
[1757638259321,3.7983,4532.4,4531.3,22.29711]
[1757638259521,3.2078,4532.4,4531.8,0.596]
[1757638259719,3.2078,4533.3,4532.2,3.2078]
[1757638260019,0.2198,4533.5,4532.8,3.2078]
[1757638260219,0.2198,4533.5,4532.4,0.2369]
[1757638260220,3.2078,4533.3,4532.9,0.875]
[1757638260425,3.2078,4533.3,4532.3,3.2078]
[1757638260617,0.5905,4533.2,4532.3,3.2078]
[1757638260821,0.5905,4532.6,4532.4,0.279]
[1757638261023,0.5905,4532.6,4532.0,31.766]
[1757638261222,3.2078,4532.1,4531.4,0.279]
[1757638261422,0.5905,4532.5,4531.4,0.279]
[1757638261732,0.5905,4532.0,4531.1,3.2078]
[1757638262430,0.5905,4532.0,4531.2,0.279]
[1757638263328,0.5905,4532.0,4531.1,3.2078]
[1757638263329,3.2078,4531.6,4531.1,0.279]
[1757638263539,0.5905,4531.5,4530.6,3.2078]
[1757638263834,0.5905,4531.5,4530.7,0.279]
[1757638264032,0.5905,4531.5,4530.6,3.2078]
[1757638264233,3.7983,4531.5,4530.7,0.279]
[1757638265036,3.7983,4531.5,4530.6,3.2078]
[1757638265237,3.7983,4531.5,4530.7,0.279]
[1757638265641,0.5905,4531.5,4530.7,0.279]
[1757638265840,3.7983,4531.5,4530.8,0.279]
[1757638266238,3.2078,4530.9,4529.6,3.2078]
[1757638266436,0.2397,4531.2,4529.6,3.2078]
[1757638266437,3.2078,4530.4,4529.6,3.2078]
[1757638266642,3.2078,4530.9,4529.7,0.596]
[1757638266941,0.8302,4531.2,4529.8,0.279]
[1757638266942,3.2078,4530.4,4529.8,0.279]
[1757638267137,0.5905,4530.6,4529.8,0.279]
[1757638267340,3.2078,4530.3,4529.3,0.279]
[1757638267645,0.5905,4530.6,4529.3,0.279]
[1757638267841,0.5905,4530.6,4529.1,3.8038]
[1757638268048,0.5905,4530.6,4529.2,0.279]
[1757638268245,0.5905,4530.0,4529.1,3.8038]
[1757638268438,3.2078,4530.1,4529.1,6.61390034]
[1757638268639,0.5905,4530.0,4529.1,6.89290034]
[1757638268840,0.8695,4530.0,4529.1,6.61390034]
[1757638269044,0.279,4530.0,4528.4,21.9]
[1757638269249,0.5905,4529.2,4528.5,0.279]
[1757638269741,3.2078,4529.9,4528.9,4.00210034]
[1757638269940,0.5905,4530.2,4529.8,3.40610034]
[1757638270142,3.2078,4530.7,4529.9,3.4868]
[1757638270346,3.2078,4531.3,4530.6,0.596]
[1757638270642,3.2078,4532.1,4531.2,3.60491]
[1757638270834,3.2078,4532.1,4531.2,3.88391]
[1757638271033,3.2078,4532.1,4531.2,0.279]
[1757638271444,3.4868,4532.1,4531.2,0.279]
[1757638272038,3.2078,4532.1,4531.2,0.279]
[1757638272239,3.4868,4532.1,4531.2,0.279]
[1757638272441,3.2078,4532.1,4531.2,0.279]
[1757638272742,0.2198,4533.5,4531.2,0.279]
[1757638272743,3.2078,4532.8,4532.0,0.39704]
[1757638272947,0.2198,4533.5,4532.0,0.39704]
[1757638272948,3.4276,4533.5,4532.7,0.39698]
[1757638273244,3.4276,4533.5,4532.8,0.279]
[1757638273439,3.4276,4533.5,4532.8,3.4868]
[1757638273440,0.2198,4533.5,4532.8,3.4868]
[1757638273841,0.2198,4533.5,4533.3,0.39692]
[1757638274139,0.2198,4533.5,4533.0,0.279]
[1757638274342,0.2198,4533.5,4533.4,3.8038]
[1757638275041,3.4475,4535.2,4533.5,0.596]
[1757638275249,3.4475,4535.2,4534.1,0.39685]
[1757638275546,0.5905,4534.6,4534.2,0.279]
[1757638275847,0.5905,4534.6,4534.0,0.279]
[1757638276047,3.7983,4534.6,4534.0,0.279]
[1757638276449,0.5905,4534.0,4533.4,3.2078]
[1757638277948,0.2397,4534.4,4531.6,3.4868]
[1757638277949,0.0996,4533.4,4531.6,3.4868]
[1757638278153,3.2078,4532.9,4531.7,0.596]
[1757638278351,3.2078,4533.5,4532.9,0.596]
[1757638279245,3.2078,4533.5,4532.8,3.7237]
[1757638279545,3.2078,4534.7,4534.0,0.99286]
[1757638279750,3.2078,4534.7,4534.1,0.875]
[1757638280146,3.2078,4535.8,4534.5,0.596]
[1757638280450,3.2078,4535.8,4535.1,0.596]
[1757638280650,3.2078,4535.8,4535.3,0.596]
[1757638280955,3.2078,4536.5,4535.6,0.596]
[1757638281151,3.2078,4536.5,4535.7,0.278]
[1757638281350,3.2078,4536.5,4535.6,0.596]
[1757638281648,3.2078,4536.0,4535.7,0.278]
[1757638281854,3.2078,4536.0,4535.2,0.2369]
[1757638282053,3.2078,4536.0,4535.3,0.278]
[1757638282250,3.2078,4536.0,4535.2,0.2369]
[1757638282455,3.2078,4536.0,4535.0,3.2078]
[1757638282857,3.2078,4536.0,4535.2,0.2369]
[1757638283151,3.2078,4536.5,4535.7,0.596]
[1757638283755,3.2078,4536.5,4535.8,0.278]
[1757638284252,3.2078,4536.5,4535.8,0.67471]
[1757638284454,3.2078,4536.5,4535.8,0.278]
[1757638285553,3.2078,4536.5,4535.7,0.596]
[1757638285554,3.2078,4536.5,4535.9,0.278]
[1757638286051,3.2078,4536.5,4535.5,3.2078]
[1757638286052,0.3365,4536.4,4535.5,3.2078]
[1757638286247,3.2078,4536.0,4535.0,3.8038]
[1757638286448,0.3365,4535.9,4535.0,3.2078]
[1757638286650,0.3365,4535.4,4534.5,3.2078]
[1757638286949,0.3365,4535.4,4534.1,0.278]
[1757638286950,3.2078,4534.9,4534.1,0.278]
[1757638287447,3.2078,4534.9,4534.0,0.278]
[1757638287650,0.361,4534.8,4533.8,3.8038]
[1757638287850,3.2078,4534.3,4533.9,0.278]
[1757638288054,3.2078,4534.3,4533.8,0.596]
[1757638288257,3.2078,4534.3,4533.7,0.278]
[1757638288452,0.58156,4534.2,4533.3,3.2078]
[1757638288652,0.361,4534.2,4533.3,3.2078]
[1757638288949,3.2078,4534.3,4533.4,0.601]
[1757638290259,3.2078,4534.3,4533.3,3.2078]
[1757638290553,0.361,4534.2,4533.3,3.2078]
[1757638290750,0.58157001,4534.2,4533.3,3.2078]
[1757638290948,0.361,4534.2,4533.3,3.2078]
[1757638291146,0.278,4534.1,4533.3,3.2078]
[1757638291853,0.278,4534.0,4533.3,3.2078]
[1757638292258,0.361,4534.2,4533.3,3.2078]
[1757638292449,0.278,4534.1,4533.3,3.2078]
[1757638292751,3.2078,4534.3,4533.4,0.601]
[1757638292948,3.2078,4534.3,4533.6,0.601]
[1757638293149,3.2078,4535.0,4534.1,0.601]
[1757638293352,3.2078,4535.0,4534.1,0.278]
[1757638293553,3.2078,4535.0,4534.2,0.601]
[1757638293952,3.2078,4535.0,4534.3,0.278]
[1757638294155,3.2078,4535.0,4534.2,0.601]
[1757638294557,0.278,4535.6,4534.3,0.278]
[1757638294558,3.2078,4534.5,4534.3,0.278]
[1757638294765,3.2078,4534.5,4534.3,0.879]
[1757638294963,3.2078,4535.0,4534.4,0.601]
[1757638295657,3.2078,4534.5,4534.3,0.278]
[1757638295952,3.2078,4534.5,4533.9,0.601]
[1757638296657,3.2078,4534.5,4533.6,3.67718695]
[1757638296856,3.2078,4534.0,4533.4,0.278]
[1757638297160,3.2078,4534.0,4533.3,4.00018695]
[1757638297459,0.361,4534.3,4533.5,3.2078]
[1757638297756,3.2078,4534.0,4533.3,4.00018695]
[1757638298650,0.361,4533.9,4533.0,3.2078]
[1757638298854,3.2078,4533.4,4532.6,0.879]
[1757638299048,3.2078,4533.4,4532.6,0.601]
[1757638299755,0.361,4533.3,4532.4,3.2078]
[1757638299963,3.2078,4532.6,4532.2,0.08256]
[1757638300449,3.2078,4532.6,4531.4,3.2078]
[1757638300646,0.2784,4532.5,4531.4,3.2078]
[1757638300859,0.278,4532.4,4531.4,3.2078]
[1757638301062,3.2078,4531.8,4530.9,3.2078]
[1757638301257,0.5564,4531.7,4530.9,3.2078]
[1757638301458,0.2784,4531.2,4529.8,0.601]
[1757638301754,3.2078,4530.3,4529.2,3.2078]
[1757638301954,3.4858,4530.3,4529.3,0.601]
[1757638302253,3.2078,4529.8,4528.7,3.2078]
[1757638302459,0.278,4529.7,4528.7,3.2078]
[1757638303458,3.2078,4529.8,4528.7,3.2078]
[1757638303855,3.2078,4531.1,4529.8,0.601]